fUSD/lending_fUSD_20240601
["ID","MTS","AMOUNT","RATE_DAILY","PERIOD"]
[328364971,1717254634742,-151.0,0.00025,7]
[328364972,1717254634751,-151.0,0.00025,7]
[328364973,1717254634760,-151.0,0.00025,7]
[328364974,1717254634770,-151.0,0.00025,7]
[328364975,1717254634779,-151.0,0.00025,7]
[328364976,1717254634789,-151.0,0.00025,7]
[328364977,1717254634798,-150.0,0.00025,4]
[328364978,1717254634809,-151.0,0.00025,7]
[328364979,1717254634819,-424.039112,0.00025,7]
[328364980,1717254634830,-424.039112,0.00025,7]
[328364981,1717254634840,-151.0,0.00025,7]
[328364982,1717254635018,-1223.4829092,0.00025003,2]
[328364983,1717254635028,-247.0,0.0002502,2]
[328364984,1717254635038,-291.0,0.0002502,2]
[328364985,1717254635048,-352.56,0.00025068,2]
[328364986,1717254635057,-1000.0,0.00025205,2]
[328364987,1717254635066,-2200.0,0.00025252,2]
[328364988,1717254635076,-500.0,0.00025252,2]
[328364989,1717254635085,-1300.0,0.00025252,2]
[328364990,1717254635094,-500.0,0.00025252,2]
[328364991,1717254635104,-500.0,0.00025252,2]
[328364992,1717254635114,-1697.41,0.00025369,2]
[328364993,1717254635123,-17267.25586066,0.00025387,2]
[328364994,1717254635132,-247.0,0.0002558,2]
[328364995,1717254635142,-291.0,0.0002558,2]
[328364996,1717254635152,-167.0,0.00025713,2]
[328364997,1717254635161,-167.0,0.00025725,2]
[328364998,1717254635171,-2200.0,0.000258,2]
[328364999,1717254635180,-1300.0,0.000258,2]
[328365000,1717254635189,-308.58838328,0.00025822,2]
[328365001,1717254635198,-218.05,0.0002589,2]
[328365002,1717254635207,-647.4653149,0.00026,5]
[328365003,1717254635216,-5682.96743082,0.00026052,2]
[328365004,1717254635225,-150.0,0.00026079,2]
[328365005,1717254635234,-247.0,0.0002614,2]
[328365006,1717254635242,-291.0,0.0002614,2]
[328365007,1717254635250,-205.48746961,0.0002619,2]
[328365008,1717254635257,-152.0,0.00026225,3]
[328365009,1717254635264,-177.88828217,0.00026225,2]
[328365010,1717254635272,-159.851098,0.00026301,7]
[328365011,1717254635281,-159.851098,0.00026301,7]
[328365012,1717254635290,-151.0,0.00026301,7]
[328365013,1717254635300,-151.0,0.00026301,7]
[328365014,1717254635309,-151.0,0.00026301,7]
[328365015,1717254635318,-151.0,0.00026301,7]
[328365016,1717254635327,-151.0,0.00026301,7]
[328365017,1717254635336,-151.0,0.00026301,7]
[328365018,1717254635346,-151.0,0.00026301,7]
[328365019,1717254635356,-151.0,0.00026301,7]
[328365020,1717254635365,-151.0,0.00026301,7]
[328365021,1717254635374,-151.0,0.00026301,7]
[328365022,1717254635383,-151.0,0.00026301,7]
[328365023,1717254635393,-151.0,0.00026301,7]
[328365024,1717254635402,-151.0,0.00026301,7]
[328365025,1717254635411,-151.0,0.00026301,7]
[328365026,1717254635420,-151.0,0.00026301,7]
[328365027,1717254635430,-151.0,0.00026301,7]
[328365028,1717254635439,-151.0,0.00026301,7]
[328365029,1717254635450,-151.0,0.00026301,7]
[328365030,1717254635460,-424.039112,0.00026301,7]
[328365031,1717254635469,-424.039112,0.00026301,7]
[328365032,1717254635479,-151.0,0.00026301,7]
[328365033,1717254635487,-871.81,0.00026301,2]
[328365034,1717254635496,-444.26,0.00026301,2]
[328365035,1717254635506,-53658.30291808,0.00026301,2]
[328365036,1717254635551,-1167.25708192,0.00026301,2]
[328365037,1717254635560,-497.88,0.00026343,2]
[328365038,1717254635570,-2200.0,0.00026348,2]
[328365039,1717254635580,-1300.0,0.00026348,2]
[328365040,1717254635590,-500.0,0.00026348,2]
[328365041,1717254635598,-500.0,0.00026348,2]
[328365042,1717254635610,-500.0,0.00026348,2]
[328365043,1717254635620,-167.0,0.00026462,2]
[328365044,1717254635629,-1697.41,0.00026472,2]
[328365045,1717254635638,-17267.25586066,0.00026689,2]
[328365046,1717254635649,-247.0,0.000267,2]
[328365047,1717254635658,-291.0,0.000267,2]
[328365048,1717254635667,-308.58838328,0.00026744,2]
[328365049,1717254635678,-1000.0,0.00026788,2]
[328365050,1717254635687,-2200.0,0.00026896,2]
[328365051,1717254635698,-1300.0,0.00026896,2]
[328365052,1717254635709,-1182.23,0.0002699,2]
[328365053,1717254635718,-957.8548,0.00027,2]
[328365054,1717254635728,-4022.42839362,0.00027,2]
[328365055,1717254635737,-600.0,0.00027,2]
[328365056,1717254635747,-5682.96743082,0.00027073,2]
[328365057,1717254635757,-1000.0,0.00027203,2]
[328365058,1717254635768,-247.0,0.0002726,2]
[328365059,1717254635778,-291.0,0.0002726,2]
[328365060,1717254635787,-421.16,0.0002726,2]
[328365061,1717254635797,-207.71,0.0002726,2]
[328365062,1717254635807,-300.75,0.0002726,2]
[328365063,1717254635818,-150.0,0.00027397,2]
[328365064,1717254635827,-158.692134,0.00027397,7]
[328365065,1717254635837,-277.32,0.000274,2]
[328365066,1717254635846,-277.32,0.000274,2]
[328365067,1717254635856,-277.32,0.000274,2]
[328365068,1717254635865,-1300.0,0.00027444,2]
[328365069,1717254635875,-500.0,0.00027444,2]
[328365070,1717254635884,-500.0,0.00027444,2]
[328365071,1717254635895,-500.0,0.00027444,2]
[328365072,1717254635909,-150.0,0.00027534,2]
[328365073,1717254635919,-207.22,0.00027534,2]
[328365074,1717254635929,-308.58838328,0.00027667,2]
[328365075,1717254635939,-356.157044,0.00027787,2]
[328365076,1717254635949,-180.34385,0.00027787,2]
[328365077,1717254635958,-150.277927,0.00027787,2]
[328365078,1717254635968,-159.054365,0.00027787,2]
[328365079,1717254635977,-247.0,0.0002782,2]
[328365080,1717254635987,-291.0,0.0002782,2]
[328365081,1717254635997,-177.88828217,0.0002795,2]
[328365082,1717254636007,-17267.25586066,0.00027992,2]
[328365083,1717254636016,-2200.0,0.00027992,2]
[328365084,1717254636026,-8914.62174979,0.00028,2]
[328365085,1717254636036,-2950.0,0.00028,15]
[328365086,1717254636046,-159.851098,0.00028,7]
[328365087,1717254636056,-159.851098,0.00028,7]
[328365088,1717254636067,-151.0,0.00028,7]
[328365089,1717254636076,-151.0,0.00028,7]
[328365090,1717254636086,-151.0,0.00028,7]
[328365091,1717254636095,-5682.96743082,0.00028094,2]
[328365092,1717254636106,-151.0,0.00028095,7]
[328365093,1717254636116,-151.0,0.00028095,7]
[328365094,1717254636126,-151.0,0.00028095,7]
[328365095,1717254636135,-150.0,0.00028118,2]
[328365096,1717254636144,-356.157044,0.00028135,2]
[328365097,1717254636154,-151.0,0.00028135,7]
[328365098,1717254636163,-424.039112,0.00028135,7]
[328365099,1717254636174,-424.039112,0.00028135,7]
[328365100,1717254636184,-151.0,0.00028135,7]
[328365101,1717254636194,-300.0,0.000282,2]
[328365102,1717254636203,-180.34385,0.0002825,2]
[328365103,1717254636212,-150.277927,0.0002825,2]
[328365104,1717254636222,-247.0,0.0002838,2]
[328365105,1717254636232,-291.0,0.0002838,2]
[328365106,1717254636242,-356.157044,0.00028482,2]
[328365107,1717254636251,-1300.0,0.0002854,2]
[328365108,1717254636261,-366.94497258,0.0002854,2]
[328365109,1717254636270,-500.0,0.0002854,2]
[328365110,1717254636280,-500.0,0.0002854,2]
[328365111,1717254636289,-300.0,0.00028571,2]
[328365112,1717254636298,-497.88,0.00028607,2]
[328365113,1717254636307,-180.34385,0.00028714,2]
[328365114,1717254636317,-150.277927,0.00028714,2]
[328365115,1717254636327,-356.157044,0.00028829,2]
[328365116,1717254636337,-150.0,0.00028839,2]
[328365117,1717254636347,-174.238497,0.000289,2]
[328365118,1717254636357,-1000.0,0.00028939,2]
[328365119,1717254636367,-247.0,0.0002894,2]
[328365120,1717254636375,-291.0,0.0002894,2]
[328365121,1717254636385,-300.0,0.00028942,2]
[328365122,1717254636394,-152.45,0.0002899,2]
[328365123,1717254636404,-277.32,0.0002899,2]
[328365124,1717254636413,-277.32,0.0002899,2]
[328365125,1717254636422,-1171.81270543,0.00028999,15]
[328365126,1717254636431,-76457.04633386,0.00029,2]
[328365127,1717254636446,-4986.82347819,0.00029,2]
[328365128,1717254636457,-888.24137536,0.00029,2]
[328365129,1717254636468,-713.54686118,0.00029,2]
[328365130,1717254636480,-1068.965344,0.00029,2]
[328365133,1717254638336,-1974.75036241,0.00019451,2]
[328365139,1717254641167,-1912.80191697,0.00019451,2]
[328365140,1717254641176,-542.570492,0.00021918,2]
[328365141,1717254641186,-500.0,0.00022031,2]
[328365142,1717254641195,-500.0,0.00022031,2]
[328365143,1717254641205,-500.0,0.00022031,2]
[328365144,1717254641214,-500.0,0.00022031,2]
[328365145,1717254641223,-500.0,0.00022031,2]
[328365146,1717254641233,-515.16801171,0.00022031,2]
[328365147,1717254641242,-158.93799432,0.00022031,2]
[328365148,1717254641258,-341.06200568,0.00022031,2]
[328365149,1717254641267,-500.0,0.00022031,2]
[328365150,1717254641277,-500.0,0.00022031,2]
[328365151,1717254641287,-165.72158575,0.00022031,2]
[328365152,1717254641296,-500.0,0.00022031,2]
[328365153,1717254641305,-500.0,0.00022031,2]
[328365154,1717254641315,-500.0,0.00022031,2]
[328365155,1717254641324,-500.0,0.00022031,2]
[328365156,1717254641333,-500.0,0.00022031,2]
[328365157,1717254641342,-500.0,0.00022031,2]
[328365158,1717254641352,-500.0,0.00022031,2]
[328365159,1717254641362,-500.0,0.00022031,2]
[328365160,1717254641371,-196.78603488,0.00022031,2]
[328365161,1717254641379,-500.0,0.00022031,2]
[328365162,1717254641389,-500.0,0.00022031,2]
[328365163,1717254641398,-500.0,0.00022031,2]
[328365164,1717254641408,-500.0,0.00022031,2]
[328365165,1717254641417,-500.0,0.00022031,2]
[328365166,1717254641427,-500.0,0.00022031,2]
[328365167,1717254641436,-500.0,0.00022031,2]
[328365168,1717254641445,-500.0,0.00022031,2]
[328365169,1717254641454,-500.0,0.00022031,2]
[328365170,1717254641463,-500.0,0.00022031,2]
[328365171,1717254641473,-500.0,0.00022031,2]
[328365172,1717254641482,-500.0,0.00022031,2]
[328365173,1717254641491,-500.0,0.00022031,2]
[328365174,1717254641502,-500.0,0.00022031,2]
[328365175,1717254641512,-500.0,0.00022031,2]
[328365176,1717254641521,-542.570492,0.0002274,2]
[328365177,1717254641674,-542.570492,0.00023562,2]
[328365178,1717254641684,-151.0,0.00025,7]
[328365179,1717254641694,-1500.13148784,0.000261,5]
[328365180,1717254642051,-542.570492,0.00024384,2]
[328365181,1717254642061,-151.0,0.00025,7]
[328365182,1717254642071,-7556.86851216,0.000261,5]
[328365183,1717254642082,-821.62,0.00027397,10]
[328365184,1717254642091,-338.0,0.000274,5]
[328365185,1717254642100,-2199.52,0.00028018,2]
[328365186,1717254642110,-308.58838328,0.00028589,2]
[328365187,1717254642119,-61903.35146331,0.00029,2]
[328365188,1717254642140,-6811.45,0.00029,2]
[328365189,1717254642152,-1103.4,0.00029,2]
[328365190,1717254642230,-492.53543469,0.00029,2]
[328365191,1717254642245,-743.39061487,0.00029,2]
[328365192,1717254642257,-23913.514792,0.00029,2]
[328365193,1717254642266,-2052.95118628,0.00029,2]
[328365194,1717254642275,-1485.85566556,0.00029,2]
[328365195,1717254642285,-5000.0,0.00029,2]
[328365196,1717254642294,-71096.00544898,0.00029,3]
[328365197,1717254642304,-650.0,0.00029,2]
[328365198,1717254642313,-159.851098,0.00029,7]
[328365199,1717254642323,-159.851098,0.00029,7]
[328365200,1717254642332,-151.0,0.00029,7]
[328365201,1717254642342,-151.0,0.00029,7]
[328365202,1717254642351,-200.22682,0.00029,7]
[328365203,1717254642361,-151.0,0.00029,7]
[328365204,1717254642370,-243.742375,0.00029,7]
[328365205,1717254642379,-151.0,0.00029,7]
[328365206,1717254642388,-151.0,0.00029,7]
[328365207,1717254642397,-151.0,0.00029,7]
[328365208,1717254642407,-264.664328,0.00029,7]
[328365209,1717254642416,-151.0,0.00029,7]
[328365210,1717254642426,-151.0,0.00029,7]
[328365211,1717254642435,-424.039112,0.00029,7]
[328365212,1717254642444,-424.039112,0.00029,7]
[328365213,1717254642454,-180.67984418,0.0002903,2]
[328365214,1717254642463,-2946.8192074,0.0002903,2]
[328365215,1717254642472,-2200.0,0.00029088,2]
[328365216,1717254642482,-5682.96743082,0.00029116,2]
[328365217,1717254642491,-151.0,0.00029116,7]
[328365218,1717254642500,-151.0,0.00029116,7]
[328365219,1717254642509,-246.251261,0.00029116,7]
[328365220,1717254642518,-151.0,0.00029116,7]
[328365221,1717254642528,-424.039112,0.00029116,7]
[328365223,1717254642542,-424.039112,0.00029116,7]
[328365225,1717254642551,-22566.14939622,0.0002913,10]
[328365227,1717254642560,-159.851098,0.0002913,7]
[328365228,1717254642570,-159.851098,0.0002913,7]
[328365229,1717254642580,-151.0,0.0002913,7]
[328365230,1717254642589,-356.157044,0.00029177,2]
[328365231,1717254642598,-180.34385,0.00029177,2]
[328365232,1717254642607,-150.277927,0.00029177,2]
[328365233,1717254642619,-159.054365,0.00029177,2]
[328365234,1717254642629,-152.0,0.0002919,4]
[328365235,1717254642638,-17267.25586066,0.00029294,2]
[328365236,1717254642647,-300.0,0.00029313,2]
[328365237,1717254642657,-1000.0,0.00029373,2]
[328365238,1717254642666,-2946.81920735,0.00029409,2]
[328365239,1717254642675,-1000.0,0.00029467,2]
[328365240,1717254642684,-247.0,0.000295,2]
[328365241,1717254642694,-291.0,0.000295,2]
[328365242,1717254642703,-3535.13776,0.000295,2]
[328365243,1717254642713,-16364.14915575,0.0002951,2]
[328365244,1717254642733,-1690.70310922,0.0002951,2]
[328365245,1717254642744,-28185.58318635,0.0002951,2]
[328365246,1717254642753,-151.0,0.0002951,7]
[328365247,1717254642763,-424.039112,0.0002951,7]
[328365248,1717254642772,-424.039112,0.0002951,7]
[328365249,1717254642781,-308.58838328,0.00029511,2]
[328365250,1717254642792,-150.0,0.0002956,2]
[328365251,1717254642801,-685.23735,0.000296,2]
[328365252,1717254642812,-2774.0,0.000296,2]
[328365253,1717254642821,-642.5089785,0.00029636,2]
[328365267,1717254643522,-542.570492,0.00025205,2]
[328365268,1717254643532,-151.0,0.00026301,7]
[328365269,1717254643542,-151.0,0.0002854,7]
[328365270,1717254643552,-511.949508,0.00029636,2]
[328365271,1717254643564,-145.5415135,0.00029636,2]
[328365272,1717254643574,-445.4706933,0.00029636,2]
[328365273,1717254643597,-54.5293067,0.00029636,2]
[328365274,1717254643606,-500.0,0.00029636,2]
[328365275,1717254643616,-177.88828217,0.00029675,2]
[328365276,1717254643625,-300.0,0.00029684,2]
[328365277,1717254643634,-2946.81920735,0.00029788,2]
[328365278,1717254643643,-151.51840623,0.000298,2]
[328365279,1717254643671,-5151.18823377,0.000298,2]
[328365280,1717254643680,-159.851098,0.000298,7]
[328365281,1717254643690,-159.851098,0.000298,7]
[328365282,1717254643699,-151.0,0.000298,7]
[328365283,1717254643709,-151.0,0.000298,7]
[328365284,1717254643719,-728.63431372,0.00029807,2]
[328365285,1717254643728,-2364.31715686,0.00029807,2]
[328365286,1717254643738,-1000.0,0.00029807,2]
[328365287,1717254643747,-151.0,0.00029807,7]
[328365288,1717254643756,-337.42728181,0.00029808,7]
[328365289,1717254643766,-1201.84707449,0.00029808,2]
[328365290,1717254643775,-18253.44,0.00029815,2]
[328365291,1717254643784,-5719.82,0.00029815,2]
[328365292,1717254643794,-2014.82003656,0.000299,2]
[328365293,1717254643806,-5058.85832278,0.0003,4]
[328365294,1717254643816,-172.62720833,0.0003,2]
[328365295,1717254643826,-16140.26075573,0.0003,4]
[328365296,1717254643836,-5698.34718129,0.0003,2]
[328365297,1717254643846,-7401.90937795,0.0003,2]
[328365298,1717254643856,-4110.96740362,0.0003,10]
[328365299,1717254643866,-500.0,0.0003,2]
[328365300,1717254643875,-14400.0,0.0003,7]
[328365301,1717254643883,-19562.44714287,0.0003,2]
[328365302,1717254643894,-305.06064231,0.0003,4]
[328365303,1717254643904,-4957.71878983,0.0003,2]
[328365304,1717254643913,-200.0,0.0003,2]
[328365306,1717254643923,-7070.27552,0.0003,2]
[328365307,1717254643932,-10000.0,0.0003,8]
[328365308,1717254643942,-159.851098,0.0003,7]
[328365309,1717254643951,-159.851098,0.0003,7]
[328365310,1717254643961,-237.852158,0.0003,7]
[328365311,1717254643970,-151.0,0.0003,7]
[328365312,1717254643979,-151.0,0.0003,7]
[328365313,1717254643988,-176.780648,0.0003,7]
[328365314,1717254643999,-207.0,0.0003,2]
[328365315,1717254644008,-424.039112,0.0003,7]
[328365316,1717254644017,-424.039112,0.0003,7]
[328365317,1717254644026,-301.21,0.0003,2]
[328365318,1717254644035,-300.0,0.00030055,2]
[328365319,1717254644045,-247.0,0.0003007,2]
[328365320,1717254644054,-291.0,0.0003007,2]
[328365321,1717254644064,-5682.96743082,0.00030137,10]
[328365322,1717254644073,-151.0,0.00030137,7]
[328365323,1717254644082,-151.0,0.00030137,7]
[328365324,1717254644091,-159.554692,0.00030137,7]
[328365325,1717254644102,-151.0,0.00030137,7]
[328365326,1717254644112,-151.0,0.00030137,7]
[328365327,1717254644121,-151.0,0.00030137,7]
[328365328,1717254644131,-151.0,0.00030137,7]
[328365329,1717254644140,-151.0,0.00030137,7]
[328365330,1717254644150,-151.0,0.00030137,7]
[328365331,1717254644159,-151.0,0.00030137,7]
[328365332,1717254644169,-151.0,0.00030137,7]
[328365333,1717254644178,-164.587183,0.00030137,7]
[328365334,1717254644188,-2946.81920735,0.00030167,2]
[328365335,1717254644197,-2200.0,0.00030184,10]
[328365336,1717254644207,-8837.8444,0.000302,2]
[328365337,1717254644216,-150.0,0.00030281,2]
[328365338,1717254644225,-167.75,0.0003031,2]
[328365339,1717254644235,-221.0,0.000304,2]
[328365340,1717254644244,-416.58,0.00030411,2]
[328365341,1717254644253,-871.81,0.00030411,2]
[328365342,1717254644263,-416.58,0.00030411,2]
[328365343,1717254644272,-871.81,0.00030411,2]
[328365344,1717254644281,-871.81,0.00030411,2]
[328365345,1717254644290,-416.58,0.00030411,2]
[328365346,1717254644299,-416.58,0.00030411,2]
[328365347,1717254644309,-871.81,0.00030411,2]
[328365348,1717254644318,-416.58,0.00030411,2]
[328365349,1717254644327,-871.81,0.00030411,2]
[328365350,1717254644336,-416.58,0.00030411,2]
[328365351,1717254644345,-871.81,0.00030411,2]
[328365352,1717254644354,-871.81,0.00030411,2]
[328365353,1717254644364,-416.58,0.00030411,2]
[328365354,1717254644373,-416.58,0.00030411,2]
[328365355,1717254644383,-871.81,0.00030411,2]
[328365356,1717254644392,-416.58,0.00030411,2]
[328365357,1717254644402,-871.81,0.00030411,2]
[328365358,1717254644411,-871.81,0.00030411,2]
[328365359,1717254644420,-416.58,0.00030411,2]
[328365360,1717254644429,-863.1,0.00030411,2]
[328365361,1717254644438,-300.0,0.00030426,2]
[328365362,1717254644447,-12372.98216,0.000305,2]
[328365363,1717254644456,-424.039112,0.000305,7]
[328365364,1717254644465,-424.039117,0.000305,7]
[328365365,1717254644474,-2946.81920735,0.00030546,2]
[328365366,1717254644484,-17267.25586066,0.00030596,10]
[328365367,1717254644493,-247.0,0.0003063,2]
[328365368,1717254644503,-291.0,0.0003063,2]
[328365369,1717254644513,-207.37467262,0.00030721,4]
[328365370,1717254644522,-1300.0,0.00030732,10]
[328365371,1717254644532,-500.0,0.00030732,10]
[328365372,1717254644545,-500.0,0.00030732,10]
[328365373,1717254644555,-300.0,0.00030797,2]
[328365374,1717254644563,-14140.55104,0.000308,2]
[328365375,1717254644573,-159.851098,0.000308,7]
[328365376,1717254644583,-159.851098,0.000308,7]
[328365377,1717254644592,-151.0,0.000308,7]
[328365378,1717254644601,-300.0,0.00030822,2]
[328365379,1717254644610,-150.0,0.00030822,2]
[328365380,1717254644620,-150.0,0.00030822,2]
[328365381,1717254644629,-150.0,0.00030822,2]
[328365382,1717254644638,-151.0,0.00030822,7]
[328365383,1717254644648,-151.0,0.00030822,7]
[328365384,1717254644657,-497.88,0.0003087,2]
[328365385,1717254644666,-2946.81920735,0.00030925,2]
[328365386,1717254644675,-221.0,0.0003099,2]
[328365387,1717254644685,-417.19857153,0.00031,10]
[328365388,1717254644694,-10000.0,0.00031,9]
[328365389,1717254644703,-700.0,0.00031,2]
[328365390,1717254644712,-150.0,0.00031002,2]
[328365391,1717254644722,-154.23546906,0.00031057,7]
[328365392,1717254644731,-180.67984417,0.00031115,2]
[328365393,1717254644740,-5682.96743082,0.00031158,10]
[328365394,1717254644749,-400.0,0.00031168,2]
[328365395,1717254644759,-153.73703161,0.00031173,7]
[328365396,1717254644768,-247.0,0.0003119,2]
[328365397,1717254644778,-291.0,0.0003119,2]
[328365398,1717254644788,-358.05665346,0.000312,2]
[328365399,1717254644797,-167.69499566,0.00031201,7]
[328365400,1717254644808,-160.2975206,0.00031215,7]
[328365401,1717254644817,-158.63613536,0.00031256,7]
[328365402,1717254644826,-2200.0,0.0003128,10]
[328365403,1717254644836,-2946.81920735,0.00031305,2]
[328365404,1717254644845,-10055.69860289,0.000314,2]
[328365405,1717254644854,-177.88828217,0.000314,2]
[328365406,1717254644865,-243.14331022,0.0003149,7]
[328365407,1717254644874,-10030.29922023,0.00031497,2]
[328365408,1717254644883,-109951.46178372,0.000315,5]
[328365409,1717254644906,-380734.83821628,0.000315,5]
[328365410,1717254644916,-159.851098,0.000315,7]
[328365411,1717254644925,-159.851098,0.000315,7]
[328365412,1717254644934,-151.0,0.000315,7]
[328365413,1717254644943,-151.0,0.000315,7]
[328365414,1717254644952,-282.0,0.000315,7]
[328365415,1717254644961,-3814.0,0.00031503,2]
[328365416,1717254644971,-152.2949498,0.00031541,7]
[328365417,1717254644980,-158.9121106,0.00031561,7]
[328365418,1717254644989,-221.0,0.0003158,2]
[328365419,1717254644999,-153.94527055,0.00031676,7]
[328365420,1717254645008,-2946.81920735,0.00031684,3]
[328365421,1717254645017,-150.0,0.00031723,2]
[328365422,1717254645027,-247.0,0.0003175,2]
[328365423,1717254645037,-291.0,0.0003175,2]
[328365424,1717254645046,-1300.0,0.00031828,10]
[328365425,1717254645055,-500.0,0.00031828,10]
[328365426,1717254645063,-500.0,0.00031828,10]
[328365427,1717254645073,-17267.25586066,0.00031898,10]
[328365428,1717254645082,-1000.0,0.000319,2]
[328365429,1717254645091,-152.2949498,0.00031942,7]
[328365430,1717254645101,-150.0,0.00031949,2]
[328365431,1717254645111,-705.08,0.00032,2]
[328365432,1717254645120,-182.53556129,0.00032,2]
[328365433,1717254645129,-332.198116,0.00032,4]
[328365434,1717254645138,-154036.70788174,0.00032,2]
[328365435,1717254645147,-900.0,0.00032,33]
[328365436,1717254645156,-5000.0,0.00032,10]
[328365437,1717254645165,-159.851098,0.00032,7]
[328365438,1717254645174,-159.851103,0.00032,7]
[328365439,1717254645184,-183.62875952,0.00032,2]
[328365440,1717254645192,-183.62875952,0.00032,2]
[328365441,1717254645200,-183.62875952,0.00032,2]
[328365442,1717254645209,-183.62875952,0.00032,2]
[328365443,1717254645219,-183.62875952,0.00032,2]
[328365444,1717254645228,-183.62875952,0.00032,2]
[328365445,1717254645237,-183.62875952,0.00032,2]
[328365446,1717254645247,-183.62875952,0.00032,2]
[328365447,1717254645257,-183.62875952,0.00032,2]
[328365448,1717254645266,-183.62875952,0.00032,2]
[328365449,1717254645277,-183.62875952,0.00032,2]
[328365450,1717254645286,-183.62875952,0.00032,2]
[328365451,1717254645295,-183.62875952,0.00032,2]
[328365452,1717254645304,-183.62875952,0.00032,2]
[328365453,1717254645314,-183.62875952,0.00032,2]
[328365454,1717254645324,-183.62875952,0.00032,2]
[328365455,1717254645334,-183.62875952,0.00032,2]
[328365456,1717254645345,-183.62875952,0.00032,2]
[328365457,1717254645356,-183.62875952,0.00032,2]
[328365458,1717254645366,-183.62875952,0.00032,2]
[328365459,1717254645375,-183.62875952,0.00032,2]
[328365460,1717254645385,-183.62875952,0.00032,2]
[328365461,1717254645395,-183.62875952,0.00032,2]
[328365462,1717254645404,-183.62875952,0.00032,2]
[328365463,1717254645414,-183.62875952,0.00032,2]
[328365464,1717254645425,-183.62875952,0.00032,2]
[328365465,1717254645434,-183.62875952,0.00032,2]
[328365466,1717254645444,-183.62875952,0.00032,2]
[328365467,1717254645453,-183.62875952,0.00032,2]
[328365468,1717254645463,-183.62875952,0.00032,2]
[328365469,1717254645473,-183.62875952,0.00032,2]
[328365470,1717254645484,-183.62875952,0.00032,2]
[328365471,1717254645494,-183.62875952,0.00032,2]
[328365472,1717254645505,-183.62875952,0.00032,2]
[328365473,1717254645515,-183.62875952,0.00032,2]
[328365474,1717254645525,-183.62875952,0.00032,2]
[328365475,1717254645536,-183.62875952,0.00032,2]
[328365476,1717254645545,-183.62875952,0.00032,2]
[328365477,1717254645559,-183.62875952,0.00032,2]
[328365478,1717254645569,-183.62875952,0.00032,2]
[328365479,1717254645580,-183.62875952,0.00032,2]
[328365480,1717254645590,-183.62875952,0.00032,2]
[328365481,1717254645600,-183.62875952,0.00032,2]
[328365482,1717254645723,-183.62875952,0.00032,2]
[328365483,1717254645733,-183.62875952,0.00032,2]
[328365484,1717254645742,-183.62875952,0.00032,2]
[328365485,1717254645751,-151.0,0.00032,7]
[328365486,1717254645760,-1309.7724751,0.00032,2]
[328365487,1717254645769,-1309.7724751,0.00032,2]
[328365488,1717254645778,-1309.7724751,0.00032,2]
[328365489,1717254645787,-1309.7724751,0.00032,2]
[328365490,1717254645796,-1309.7724751,0.00032,2]
[328365491,1717254645806,-1309.7724751,0.00032,2]
[328365492,1717254645817,-1309.7724751,0.00032,2]
[328365493,1717254645826,-1309.7724751,0.00032,2]
[328365494,1717254645836,-1309.7724751,0.00032,2]